[Event "Late-Titled-Tuesday-Blitz-March-26-2024"]
[Site "Chess.com"]
[Date "2024.03.26"]
[Round "5"]
[White "GlavkonVVS"]
[Black "mbojan"]
[Result "0-1"]
[WhiteElo "2648"]
[BlackElo "2878"]
[TimeControl "180+1"]
[EndTime "14:56:58 PDT"]
[Termination "mbojan won by resignation"]

1. c4 {[%clk 0:03:00.9]} 1... Nf6 {[%clk 0:03:00]} 2. Nc3 {[%clk 0:03:01]} 2...
g6 {[%clk 0:03:00.6]} 3. g3 {[%clk 0:03:01.5]} 3... d6 {[%clk 0:03:00.7]} 4. Bg2
{[%clk 0:03:02.2]} 4... Nc6 {[%clk 0:03:01.4]} 5. Nf3 {[%clk 0:03:03]} 5... Bd7
{[%clk 0:03:02]} 6. d3 {[%clk 0:03:03.6]} 6... Bg7 {[%clk 0:03:02]} 7. Rb1
{[%clk 0:03:03.4]} 7... a5 {[%clk 0:03:02]} 8. a3 {[%clk 0:03:03.4]} 8... O-O
{[%clk 0:03:00.4]} 9. b4 {[%clk 0:03:03.6]} 9... axb4 {[%clk 0:03:01.3]} 10.
axb4 {[%clk 0:03:04.3]} 10... e5 {[%clk 0:03:02.1]} 11. b5 {[%clk 0:03:04.4]}
11... Nd4 {[%clk 0:03:02.4]} 12. e3 {[%clk 0:03:00.5]} 12... Nxf3+ {[%clk
0:03:00.6]} 13. Bxf3 {[%clk 0:02:59.8]} 13... Qc8 {[%clk 0:02:59.4]} 14. O-O
{[%clk 0:02:58.3]} 14... Bh3 {[%clk 0:02:59.6]} 15. Re1 {[%clk 0:02:58.5]} 15...
Re8 {[%clk 0:03:00.3]} 16. Bd2 {[%clk 0:02:39]} 16... h6 {[%clk 0:03:00.4]} 17.
Qb3 {[%clk 0:02:22.1]} 17... Ng4 {[%clk 0:02:57.3]} 18. Nd5 {[%clk 0:02:20.3]}
18... Qf5 {[%clk 0:02:52.9]} 19. Qd1 {[%clk 0:02:14.9]} 19... Ra2 {[%clk
0:02:49.9]} 20. e4 {[%clk 0:01:43.8]} 20... Qd7 {[%clk 0:02:27.1]} 21. Ne3
{[%clk 0:01:29]} 21... h5 {[%clk 0:02:13.8]} 22. Nxg4 {[%clk 0:01:27.8]} 22...
hxg4 {[%clk 0:02:14.3]} 23. Bg2 {[%clk 0:01:21.1]} 23... Rea8 {[%clk 0:02:14.9]}
24. Be3 {[%clk 0:01:19.2]} 24... b6 {[%clk 0:02:14.3]} 25. Re2 {[%clk
0:01:08.4]} 25... R2a3 {[%clk 0:02:11]} 26. Rd2 {[%clk 0:01:07.5]} 26... Qe7
{[%clk 0:02:08.3]} 27. Bxh3 {[%clk 0:01:06.6]} 27... gxh3 {[%clk 0:02:07.8]} 28.
Qg4 {[%clk 0:01:05.7]} 28... Qe6 {[%clk 0:01:40.5]} 29. Qxe6 {[%clk 0:01:00.4]}
29... fxe6 {[%clk 0:01:41.4]} 30. f3 {[%clk 0:00:57.4]} 30... Ra2 {[%clk
0:01:30.9]} 31. Rbd1 {[%clk 0:00:42.6]} 31... Rxd2 {[%clk 0:01:31]} 32. Bxd2
{[%clk 0:00:39.2]} 32... Ra2 {[%clk 0:01:30.1]} 33. Kf1 {[%clk 0:00:37.5]} 33...
Kh7 {[%clk 0:01:29.6]} 34. f4 {[%clk 0:00:28]} 34... Bh6 {[%clk 0:01:00.8]} 35.
Ke1 {[%clk 0:00:20.4]} 35... exf4 {[%clk 0:01:00.5]} 36. gxf4 {[%clk 0:00:20.2]}
36... Kg7 {[%clk 0:00:59.1]} 37. Kf1 {[%clk 0:00:20.5]} 37... e5 {[%clk
0:00:53.1]} 38. Ke1 {[%clk 0:00:12.1]} 38... Bxf4 {[%clk 0:00:52]} 39. Bxf4
{[%clk 0:00:12.5]} 39... exf4 {[%clk 0:00:52.9]} 40. Rd2 {[%clk 0:00:13.1]}
40... Rxd2 {[%clk 0:00:52.5]} 41. Kxd2 {[%clk 0:00:13.5]} 41... g5 {[%clk
0:00:51.4]} 42. Ke2 {[%clk 0:00:13.4]} 42... g4 {[%clk 0:00:52.1]} 43. d4 {[%clk
0:00:13.9]} 43... g3 {[%clk 0:00:51.2]} 44. Kf3 {[%clk 0:00:13.6]} 44... gxh2
{[%clk 0:00:51.4]} 0-1

[Event "Late-Titled-Tuesday-Blitz-March-26-2024"]
[Site "Chess.com"]
[Date "2024.03.26"]
[Round "5"]
[White "frequentblunders"]
[Black "Doublekk14"]
[Result "0-1"]
[WhiteElo "2212"]
[BlackElo "2404"]
[TimeControl "180+1"]
[EndTime "14:57:02 PDT"]
[Termination "Doublekk14 won on time"]

1. f4 {[%clk 0:03:00]} 1... e5 {[%clk 0:02:58.9]} 2. Nf3 {[%clk 0:03:00.9]} 2...
e4 {[%clk 0:02:55.9]} 3. Ng1 {[%clk 0:02:55.3]} 3... d5 {[%clk 0:02:55.4]} 4. e3
{[%clk 0:02:55.2]} 4... c5 {[%clk 0:02:53.5]} 5. c4 {[%clk 0:02:55.4]} 5... d4
{[%clk 0:02:50.6]} 6. d3 {[%clk 0:02:55.2]} 6... exd3 {[%clk 0:02:46.9]} 7. Bxd3
{[%clk 0:02:49.8]} 7... Nc6 {[%clk 0:02:47.8]} 8. Nf3 {[%clk 0:02:48.1]} 8...
Nf6 {[%clk 0:02:47.1]} 9. e4 {[%clk 0:02:45.8]} 9... Bg4 {[%clk 0:02:45.7]} 10.
O-O {[%clk 0:02:44.9]} 10... Be7 {[%clk 0:02:39.6]} 11. h3 {[%clk 0:02:44.4]}
11... Bxf3 {[%clk 0:02:39.3]} 12. Qxf3 {[%clk 0:02:45]} 12... O-O {[%clk
0:02:33.7]} 13. Nd2 {[%clk 0:02:28.8]} 13... Nb4 {[%clk 0:02:25.1]} 14. Bb1
{[%clk 0:02:13.3]} 14... d3 {[%clk 0:02:15.8]} 15. e5 {[%clk 0:02:09.1]} 15...
Qd4+ {[%clk 0:02:15.2]} 16. Kh1 {[%clk 0:02:01.5]} 16... Nd7 {[%clk 0:01:57.8]}
17. a3 {[%clk 0:01:43.9]} 17... Nc2 {[%clk 0:01:55]} 18. Bxc2 {[%clk 0:01:40.1]}
18... dxc2 {[%clk 0:01:53.9]} 19. Qxb7 {[%clk 0:01:33.8]} 19... Rfb8 {[%clk
0:01:45.3]} 20. Qf3 {[%clk 0:01:14.1]} 20... a5 {[%clk 0:01:37.4]} 21. Ra2
{[%clk 0:00:56]} 21... a4 {[%clk 0:01:34.8]} 22. Qc3 {[%clk 0:00:43.6]} 22...
Nb6 {[%clk 0:00:48.4]} 23. Nf3 {[%clk 0:00:26.1]} 23... Qxc3 {[%clk 0:00:45.6]}
24. bxc3 {[%clk 0:00:27]} 24... Nxc4 {[%clk 0:00:46.5]} 25. Rxc2 {[%clk
0:00:27]} 25... Rb3 {[%clk 0:00:44.9]} 26. Rd1 {[%clk 0:00:16.2]} 26... Nxa3
{[%clk 0:00:43.8]} 27. Bxa3 {[%clk 0:00:17.1]} 27... Rxa3 {[%clk 0:00:43.9]} 28.
Rd7 {[%clk 0:00:14.4]} 28... Bf8 {[%clk 0:00:44]} 29. Ng5 {[%clk 0:00:09]} 29...
Rb3 {[%clk 0:00:36.9]} 30. Nxf7 {[%clk 0:00:06.8]} 30... a3 {[%clk 0:00:36.8]}
31. Ra2 {[%clk 0:00:01.9]} 31... Rb2 {[%clk 0:00:35.3]} 0-1

[Event "Late-Titled-Tuesday-Blitz-March-26-2024"]
[Site "Chess.com"]
[Date "2024.03.26"]
[Round "5"]
[White "XDPS"]
[Black "Azerichess"]
[Result "1-0"]
[WhiteElo "2910"]
[BlackElo "3027"]
[TimeControl "180+1"]
[EndTime "14:57:05 PDT"]
[Termination "XDPS won on time"]

1. d4 {[%clk 0:03:00.9]} 1... d5 {[%clk 0:02:59.8]} 2. Bf4 {[%clk 0:03:00.3]}
2... Nf6 {[%clk 0:02:58.9]} 3. e3 {[%clk 0:03:00.8]} 3... Bf5 {[%clk 0:02:58.9]}
4. Nf3 {[%clk 0:03:00.3]} 4... e6 {[%clk 0:02:59]} 5. Nbd2 {[%clk 0:03:00.9]}
5... Be7 {[%clk 0:02:53.5]} 6. Ne5 {[%clk 0:02:58.1]} 6... h6 {[%clk 0:02:47]}
7. Bd3 {[%clk 0:02:57.7]} 7... Bxd3 {[%clk 0:02:46.4]} 8. cxd3 {[%clk
0:02:57.5]} 8... O-O {[%clk 0:02:46.7]} 9. O-O {[%clk 0:02:57.6]} 9... c6 {[%clk
0:02:44.4]} 10. a3 {[%clk 0:02:37.5]} 10... Nbd7 {[%clk 0:02:43.6]} 11. Ndf3
{[%clk 0:02:29.7]} 11... a5 {[%clk 0:02:41.1]} 12. Qe2 {[%clk 0:02:23.7]} 12...
a4 {[%clk 0:02:40.5]} 13. Rac1 {[%clk 0:02:22.3]} 13... Ra6 {[%clk 0:02:40.5]}
14. e4 {[%clk 0:02:20.7]} 14... Nxe5 {[%clk 0:02:34.2]} 15. dxe5 {[%clk
0:02:17.1]} 15... dxe4 {[%clk 0:02:13.8]} 16. dxe4 {[%clk 0:01:39.8]} 16... Nd7
{[%clk 0:02:13.3]} 17. Rfd1 {[%clk 0:01:39.6]} 17... Qc7 {[%clk 0:02:13.2]} 18.
h4 {[%clk 0:01:38]} 18... Nc5 {[%clk 0:02:09.6]} 19. Rd6 {[%clk 0:01:32.9]}
19... Nb3 {[%clk 0:01:59]} 20. Rcd1 {[%clk 0:01:32.8]} 20... Bxd6 {[%clk
0:01:55.6]} 21. exd6 {[%clk 0:01:33.7]} 21... Qa5 {[%clk 0:01:55.8]} 22. Ne5
{[%clk 0:01:12.9]} 22... f6 {[%clk 0:01:40.2]} 23. Ng6 {[%clk 0:01:05.7]} 23...
Rd8 {[%clk 0:01:40]} 24. e5 {[%clk 0:01:03.9]} 24... Qb5 {[%clk 0:01:07.7]} 25.
Qg4 {[%clk 0:00:53.7]} 25... Kf7 {[%clk 0:00:33.8]} 26. Ne7 {[%clk 0:00:47.2]}
26... Nd4 {[%clk 0:00:19.2]} 27. Qg6+ {[%clk 0:00:44.6]} 27... Kf8 {[%clk
0:00:19.3]} 28. Bxh6 {[%clk 0:00:26.5]} 28... Ne2+ {[%clk 0:00:15.5]} 29. Kh1
{[%clk 0:00:25.3]} 1-0

[Event "Late-Titled-Tuesday-Blitz-March-26-2024"]
[Site "Chess.com"]
[Date "2024.03.26"]
[Round "5"]
[White "bazar-wokzal"]
[Black "falzehope0"]
[Result "1-0"]
[WhiteElo "2573"]
[BlackElo "2386"]
[TimeControl "180+1"]
[EndTime "14:57:06 PDT"]
[Termination "bazar-wokzal won on time"]

1. e4 {[%clk 0:03:00.9]} 1... d6 {[%clk 0:03:00]} 2. f4 {[%clk 0:03:00.6]} 2...
Nf6 {[%clk 0:03:00.6]} 3. Nc3 {[%clk 0:03:00.3]} 3... e5 {[%clk 0:02:59.7]} 4.
Nf3 {[%clk 0:03:00.2]} 4... Nbd7 {[%clk 0:02:58.7]} 5. Bc4 {[%clk 0:02:59.7]}
5... Be7 {[%clk 0:02:58.4]} 6. O-O {[%clk 0:02:57.8]} 6... O-O {[%clk
0:02:57.7]} 7. d4 {[%clk 0:02:58.2]} 7... exd4 {[%clk 0:02:57.5]} 8. Qxd4 {[%clk
0:02:58]} 8... d5 {[%clk 0:02:57.6]} 9. Kh1 {[%clk 0:02:35.6]} 9... Bc5 {[%clk
0:02:47.3]} 10. Qd3 {[%clk 0:02:32.2]} 10... dxc4 {[%clk 0:02:41.4]} 11. Qxc4
{[%clk 0:02:32.6]} 11... Bb6 {[%clk 0:02:27.9]} 12. e5 {[%clk 0:02:31.2]} 12...
Ng4 {[%clk 0:02:24.9]} 13. h3 {[%clk 0:02:26.1]} 13... Nh6 {[%clk 0:02:17.6]}
14. g4 {[%clk 0:02:21.1]} 14... Kh8 {[%clk 0:02:05.9]} 15. f5 {[%clk 0:02:16.9]}
15... Ng8 {[%clk 0:01:51.2]} 16. Bf4 {[%clk 0:02:11.8]} 16... c6 {[%clk
0:01:40.8]} 17. Rad1 {[%clk 0:02:10.4]} 17... Qe8 {[%clk 0:01:39.9]} 18. Ne4
{[%clk 0:02:08.4]} 18... Bc7 {[%clk 0:01:33]} 19. Qc3 {[%clk 0:02:08]} 19... Nb6
{[%clk 0:01:31.7]} 20. Bh2 {[%clk 0:01:52.7]} 20... f6 {[%clk 0:01:28.5]} 21. e6
{[%clk 0:01:49.9]} 21... Bxh2 {[%clk 0:01:27.2]} 22. Kxh2 {[%clk 0:01:49.3]}
22... Nd5 {[%clk 0:01:24.2]} 23. Qb3 {[%clk 0:01:48.1]} 23... Nge7 {[%clk
0:01:20.4]} 24. c4 {[%clk 0:01:47]} 24... Nxf5 {[%clk 0:00:59.9]} 25. cxd5
{[%clk 0:01:25.9]} 25... cxd5 {[%clk 0:00:58.4]} 26. gxf5 {[%clk 0:01:19.9]}
26... dxe4 {[%clk 0:00:57.9]} 27. Nd4 {[%clk 0:01:17.4]} 27... b6 {[%clk
0:00:50.6]} 28. Nb5 {[%clk 0:01:13]} 28... Qh5 {[%clk 0:00:30.9]} 29. Nd6 {[%clk
0:00:55.1]} 29... Ba6 {[%clk 0:00:19.2]} 30. Rfe1 {[%clk 0:00:42.9]} 30... Be2
{[%clk 0:00:16.4]} 31. Rd2 {[%clk 0:00:39.6]} 31... Bf3 {[%clk 0:00:16.3]} 32.
e7 {[%clk 0:00:36.2]} 32... Qh6 {[%clk 0:00:08.2]} 33. exf8=Q+ {[%clk
0:00:31.7]} 33... Rxf8 {[%clk 0:00:07.5]} 34. Nf7+ {[%clk 0:00:31.6]} 34... Rxf7
{[%clk 0:00:07.6]} 35. Rd8+ {[%clk 0:00:31.2]} 1-0

[Event "Late-Titled-Tuesday-Blitz-March-26-2024"]
[Site "Chess.com"]
[Date "2024.03.26"]
[Round "5"]
[White "mitrabhaa"]
[Black "snowlord"]
[Result "0-1"]
[WhiteElo "3059"]
[BlackElo "2946"]
[TimeControl "180+1"]
[EndTime "14:57:10 PDT"]
[Termination "snowlord won by resignation"]

1. Nf3 {[%clk 0:03:00.9]} 1... d5 {[%clk 0:02:54.3]} 2. c4 {[%clk 0:03:00.5]}
2... d4 {[%clk 0:02:54.2]} 3. b4 {[%clk 0:02:59.8]} 3... c5 {[%clk 0:02:53.3]}
4. bxc5 {[%clk 0:02:59.8]} 4... Nc6 {[%clk 0:02:53.2]} 5. d3 {[%clk 0:02:59.6]}
5... e5 {[%clk 0:02:53.2]} 6. g3 {[%clk 0:03:00.1]} 6... Bxc5 {[%clk 0:02:52.8]}
7. Bg2 {[%clk 0:02:59.9]} 7... Nf6 {[%clk 0:02:52.7]} 8. O-O {[%clk 0:02:59.7]}
8... h6 {[%clk 0:02:50]} 9. Ba3 {[%clk 0:02:59.8]} 9... Be7 {[%clk 0:02:44.8]}
10. Qa4 {[%clk 0:02:55.7]} 10... O-O {[%clk 0:02:44.8]} 11. Bxe7 {[%clk
0:02:55.3]} 11... Qxe7 {[%clk 0:02:45.7]} 12. Qa3 {[%clk 0:02:55.6]} 12... Nb4
{[%clk 0:02:37]} 13. Ne1 {[%clk 0:02:49]} 13... Re8 {[%clk 0:02:35]} 14. Qb3
{[%clk 0:02:43.3]} 14... a5 {[%clk 0:02:20.9]} 15. Nc2 {[%clk 0:02:34.9]} 15...
Nxc2 {[%clk 0:02:10.5]} 16. Qxc2 {[%clk 0:02:34.5]} 16... e4 {[%clk 0:02:11.4]}
17. Nd2 {[%clk 0:02:33.5]} 17... e3 {[%clk 0:02:10]} 18. Nb3 {[%clk 0:02:20.7]}
18... exf2+ {[%clk 0:02:08.1]} 19. Rxf2 {[%clk 0:02:20.5]} 19... Ng4 {[%clk
0:02:08.8]} 20. Rf4 {[%clk 0:02:16.9]} 20... Qe3+ {[%clk 0:02:08.4]} 21. Kh1
{[%clk 0:02:02.6]} 21... Nf2+ {[%clk 0:02:08.4]} 22. Rxf2 {[%clk 0:01:58.6]}
22... Qxf2 {[%clk 0:02:09.3]} 23. Bf3 {[%clk 0:01:54.3]} 23... Bh3 {[%clk
0:02:05.9]} 24. Qd1 {[%clk 0:01:42]} 24... Rxe2 {[%clk 0:02:00.4]} 25. Qxe2
{[%clk 0:01:21.7]} 25... Bg2+ {[%clk 0:02:00.8]} 26. Bxg2 {[%clk 0:01:22.4]}
26... Qxe2 {[%clk 0:02:01.7]} 27. Bxb7 {[%clk 0:01:22.9]} 27... Rb8 {[%clk
0:02:00.3]} 28. Be4 {[%clk 0:01:21.9]} 28... a4 {[%clk 0:01:59.5]} 29. c5 {[%clk
0:00:54.7]} 29... axb3 {[%clk 0:01:59.4]} 30. axb3 {[%clk 0:00:55.6]} 30... g6
{[%clk 0:01:58.4]} 31. c6 {[%clk 0:00:55.2]} 31... Qc2 {[%clk 0:01:58.2]} 32.
Bd5 {[%clk 0:00:49.3]} 32... Re8 {[%clk 0:01:45.3]} 33. Rf1 {[%clk 0:00:40.5]}
33... Re2 {[%clk 0:01:44.2]} 34. Rxf7 {[%clk 0:00:39.1]} 34... h5 {[%clk
0:00:31.2]} 35. c7 {[%clk 0:00:23.8]} 35... Kh8 {[%clk 0:00:31.4]} 36. Kg1
{[%clk 0:00:09]} 36... Re1+ {[%clk 0:00:31.4]} 37. Rf1 {[%clk 0:00:08.6]} 37...
Rxf1+ {[%clk 0:00:31.9]} 38. Kxf1 {[%clk 0:00:09.5]} 38... Qxc7 {[%clk
0:00:32.5]} 39. Bc4 {[%clk 0:00:09.5]} 39... Kg7 {[%clk 0:00:33.2]} 0-1

[Event "Late-Titled-Tuesday-Blitz-March-26-2024"]
[Site "Chess.com"]
[Date "2024.03.26"]
[Round "5"]
[White "Meri-Arabidze"]
[Black "KuzubovYuriy"]
[Result "0-1"]
[WhiteElo "2681"]
[BlackElo "2924"]
[TimeControl "180+1"]
[EndTime "14:57:10 PDT"]
[Termination "KuzubovYuriy won on time"]

1. Nf3 {[%clk 0:02:56.7]} 1... d5 {[%clk 0:02:59.1]} 2. c4 {[%clk 0:02:56.5]}
2... d4 {[%clk 0:02:58.6]} 3. b4 {[%clk 0:02:56.7]} 3... g5 {[%clk 0:02:58.6]}
4. h3 {[%clk 0:02:55.9]} 4... Bg7 {[%clk 0:02:56.7]} 5. d3 {[%clk 0:02:55.9]}
5... h6 {[%clk 0:02:54]} 6. g3 {[%clk 0:02:55.7]} 6... e5 {[%clk 0:02:51.7]} 7.
Bg2 {[%clk 0:02:55.7]} 7... Nd7 {[%clk 0:02:50.7]} 8. a4 {[%clk 0:02:53.6]} 8...
f5 {[%clk 0:02:41]} 9. O-O {[%clk 0:02:43]} 9... Ngf6 {[%clk 0:02:37.1]} 10. b5
{[%clk 0:02:42.6]} 10... O-O {[%clk 0:02:36]} 11. Ba3 {[%clk 0:02:36.6]} 11...
Re8 {[%clk 0:02:29.8]} 12. c5 {[%clk 0:02:35.9]} 12... g4 {[%clk 0:02:29.5]} 13.
hxg4 {[%clk 0:02:34.8]} 13... Nxg4 {[%clk 0:02:29.2]} 14. c6 {[%clk 0:02:32.3]}
14... bxc6 {[%clk 0:02:27.6]} 15. Nh4 {[%clk 0:02:26.9]} 15... Ndf6 {[%clk
0:02:06.4]} 16. Bxc6 {[%clk 0:02:19.8]} 16... Bd7 {[%clk 0:02:06.5]} 17. Bxa8
{[%clk 0:01:56]} 17... Qxa8 {[%clk 0:02:07.4]} 18. Nd2 {[%clk 0:01:56.3]} 18...
e4 {[%clk 0:01:59.4]} 19. Nc4 {[%clk 0:01:45.2]} 19... f4 {[%clk 0:01:43.7]} 20.
f3 {[%clk 0:01:33.2]} 20... exf3 {[%clk 0:01:37.8]} 21. Rxf3 {[%clk 0:01:31.4]}
21... fxg3 {[%clk 0:01:31.8]} 22. Rxg3 {[%clk 0:01:25.5]} 22... Qd5 {[%clk
0:01:21.5]} 23. Qf1 {[%clk 0:01:22.1]} 23... Nh5 {[%clk 0:01:05]} 24. Qg2 {[%clk
0:01:01.7]} 24... Qg5 {[%clk 0:01:01.9]} 25. Nf3 {[%clk 0:01:01.6]} 25... Qf4
{[%clk 0:00:57.1]} 26. Rh3 {[%clk 0:00:55]} 26... Ne3 {[%clk 0:00:55.6]} 27. Qh2
{[%clk 0:00:24.5]} 27... Qg4+ {[%clk 0:00:53.2]} 28. Kf2 {[%clk 0:00:21.9]}
28... Qxh3 {[%clk 0:00:52.1]} 29. Qxh3 {[%clk 0:00:21.8]} 29... Bxh3 {[%clk
0:00:51.9]} 30. Rh1 {[%clk 0:00:21.6]} 30... Ng4+ {[%clk 0:00:48.6]} 31. Ke1
{[%clk 0:00:20.1]} 31... Nf4 {[%clk 0:00:43.8]} 32. Kd1 {[%clk 0:00:10.3]} 32...
Bg2 {[%clk 0:00:39.2]} 33. Rh4 {[%clk 0:00:09.6]} 33... h5 {[%clk 0:00:35.4]}
34. Ne1 {[%clk 0:00:03.9]} 34... Bd5 {[%clk 0:00:32.1]} 35. Bc1 {[%clk
0:00:03.1]} 35... Bf6 {[%clk 0:00:29.1]} 0-1

[Event "Late-Titled-Tuesday-Blitz-March-26-2024"]
[Site "Chess.com"]
[Date "2024.03.26"]
[Round "5"]
[White "AlexeiShirov"]
[Black "YegoryoCh"]
[Result "1-0"]
[WhiteElo "2827"]
[BlackElo "2556"]
[TimeControl "180+1"]
[EndTime "14:57:17 PDT"]
[Termination "AlexeiShirov won by resignation"]

1. e4 {[%clk 0:03:00.9]} 1... e5 {[%clk 0:02:59.6]} 2. Nf3 {[%clk 0:03:00.3]}
2... Nc6 {[%clk 0:03:00.2]} 3. Bc4 {[%clk 0:02:59.1]} 3... Nf6 {[%clk
0:02:59.9]} 4. d3 {[%clk 0:02:57.7]} 4... Bc5 {[%clk 0:02:59.9]} 5. Bg5 {[%clk
0:02:56.7]} 5... d6 {[%clk 0:02:54.6]} 6. c3 {[%clk 0:02:51.6]} 6... h6 {[%clk
0:02:50.7]} 7. Bh4 {[%clk 0:02:50.7]} 7... g5 {[%clk 0:02:35.5]} 8. Bg3 {[%clk
0:02:49.7]} 8... Bg4 {[%clk 0:02:28.1]} 9. b4 {[%clk 0:02:37.3]} 9... Bb6 {[%clk
0:02:27.6]} 10. Nbd2 {[%clk 0:02:31.1]} 10... Qd7 {[%clk 0:02:21.2]} 11. a4
{[%clk 0:02:23.7]} 11... a5 {[%clk 0:02:20.7]} 12. b5 {[%clk 0:02:21.4]} 12...
Ne7 {[%clk 0:02:20.8]} 13. h4 {[%clk 0:02:17.3]} 13... O-O-O {[%clk 0:02:10.2]}
14. Bxf7 {[%clk 0:02:10.6]} 14... Rdf8 {[%clk 0:02:10.2]} 15. Qb3 {[%clk
0:02:05.2]} 15... gxh4 {[%clk 0:02:05.6]} 16. Bxh4 {[%clk 0:02:03.9]} 16... Nh5
{[%clk 0:01:43.9]} 17. Nc4 {[%clk 0:01:58.5]} 17... Bc5 {[%clk 0:01:19]} 18.
Nfxe5 {[%clk 0:01:54.7]} 18... dxe5 {[%clk 0:01:07.7]} 19. Nxe5 {[%clk 0:01:54]}
19... Qd6 {[%clk 0:01:05.9]} 20. Nxg4 {[%clk 0:01:48.2]} 20... Qxd3 {[%clk
0:01:05.6]} 21. Qc4 {[%clk 0:01:45.3]} 21... Qxc4 {[%clk 0:00:59.8]} 22. Bxc4
{[%clk 0:01:44.1]} 22... Ng6 {[%clk 0:01:00.5]} 23. Be6+ {[%clk 0:01:37.9]}
23... Kb8 {[%clk 0:00:58.9]} 24. Bf5 {[%clk 0:01:36.8]} 24... Nxh4 {[%clk
0:00:55.6]} 25. Rxh4 {[%clk 0:01:35.3]} 25... Ng7 {[%clk 0:00:56.5]} 26. Bg6
{[%clk 0:01:25.6]} 26... Rf4 {[%clk 0:00:47.6]} 27. g3 {[%clk 0:01:22.8]} 27...
Rf3 {[%clk 0:00:47.8]} 28. Rc1 {[%clk 0:01:13.3]} 28... h5 {[%clk 0:00:46.1]}
29. Ne5 {[%clk 0:01:12.1]} 29... Bxf2+ {[%clk 0:00:38.2]} 30. Ke2 {[%clk
0:01:11.6]} 30... Be3 {[%clk 0:00:26.9]} 31. Kxf3 {[%clk 0:00:59.9]} 31... Bxc1
{[%clk 0:00:27]} 32. Nd3 {[%clk 0:00:58.2]} 32... Bd2 {[%clk 0:00:26.5]} 33. c4
{[%clk 0:00:57.3]} 33... Rf8+ {[%clk 0:00:23.1]} 34. Ke2 {[%clk 0:00:56.7]}
34... Bg5 {[%clk 0:00:23.8]} 35. Rh1 {[%clk 0:00:55.4]} 35... Ne6 {[%clk
0:00:20.1]} 36. Ne5 {[%clk 0:00:46.4]} 36... Kc8 {[%clk 0:00:14.1]} 37. Bf5
{[%clk 0:00:45.6]} 37... Re8 {[%clk 0:00:06.9]} 38. Rxh5 {[%clk 0:00:44.1]}
38... Bf6 {[%clk 0:00:07.6]} 39. Ng4 {[%clk 0:00:42.3]} 39... Bg7 {[%clk
0:00:05.1]} 40. Rh7 {[%clk 0:00:41.4]} 40... Bf8 {[%clk 0:00:05]} 41. Nf6 {[%clk
0:00:40.8]} 1-0

[Event "Late-Titled-Tuesday-Blitz-March-26-2024"]
[Site "Chess.com"]
[Date "2024.03.26"]
[Round "5"]
[White "Zq1"]
[Black "MathiasWomacka"]
[Result "1-0"]
[WhiteElo "2639"]
[BlackElo "2482"]
[TimeControl "180+1"]
[EndTime "14:57:17 PDT"]
[Termination "Zq1 won by resignation"]

1. d4 {[%clk 0:03:00.9]} 1... Nf6 {[%clk 0:02:58.2]} 2. c4 {[%clk 0:03:00.8]}
2... e6 {[%clk 0:02:57.9]} 3. Nf3 {[%clk 0:03:00.8]} 3... Bb4+ {[%clk
0:02:57.9]} 4. Bd2 {[%clk 0:03:00.1]} 4... Qe7 {[%clk 0:02:57.8]} 5. g3 {[%clk
0:02:58.6]} 5... Bxd2+ {[%clk 0:02:56.8]} 6. Qxd2 {[%clk 0:02:57.8]} 6... Nc6
{[%clk 0:02:55.3]} 7. Nc3 {[%clk 0:02:55.7]} 7... d5 {[%clk 0:02:54.6]} 8. Bg2
{[%clk 0:02:41.5]} 8... dxc4 {[%clk 0:02:53.6]} 9. O-O {[%clk 0:02:37.8]} 9...
O-O {[%clk 0:02:52.6]} 10. e4 {[%clk 0:02:29.7]} 10... Rd8 {[%clk 0:02:35.2]}
11. Rfd1 {[%clk 0:02:25.9]} 11... Rb8 {[%clk 0:02:24.3]} 12. a4 {[%clk
0:02:14.8]} 12... a6 {[%clk 0:02:21]} 13. Qf4 {[%clk 0:02:02.1]} 13... h6 {[%clk
0:02:09.6]} 14. a5 {[%clk 0:01:55.5]} 14... Ne8 {[%clk 0:01:30.2]} 15. d5 {[%clk
0:01:49.3]} 15... Nb4 {[%clk 0:01:25.5]} 16. Ne5 {[%clk 0:01:19.7]} 16... Nd6
{[%clk 0:01:16.1]} 17. Ra4 {[%clk 0:01:07.7]} 17... f6 {[%clk 0:01:14.9]} 18.
Ng6 {[%clk 0:00:41.4]} 18... Qf7 {[%clk 0:01:14.3]} 19. Rxb4 {[%clk 0:00:38.2]}
19... Qxg6 {[%clk 0:01:13.7]} 20. dxe6 {[%clk 0:00:33.2]} 20... Bxe6 {[%clk
0:01:13.1]} 21. Nd5 {[%clk 0:00:29.3]} 21... Bxd5 {[%clk 0:01:06.5]} 22. Rxd5
{[%clk 0:00:28.9]} 22... Re8 {[%clk 0:01:04.7]} 23. f3 {[%clk 0:00:21.8]} 23...
Qf7 {[%clk 0:00:51.8]} 24. h4 {[%clk 0:00:21.4]} 24... Qe7 {[%clk 0:00:50]} 25.
Ra4 {[%clk 0:00:17.7]} 25... Rbd8 {[%clk 0:00:47.6]} 26. Ra1 {[%clk 0:00:17.2]}
26... c6 {[%clk 0:00:46.1]} 27. Rd4 {[%clk 0:00:14.4]} 27... Qe5 {[%clk
0:00:43.4]} 28. Rad1 {[%clk 0:00:12.4]} 28... Qxf4 {[%clk 0:00:42.4]} 29. gxf4
{[%clk 0:00:12.4]} 29... Nf7 {[%clk 0:00:43.3]} 30. Bf1 {[%clk 0:00:11.9]} 30...
Rxd4 {[%clk 0:00:42.4]} 31. Rxd4 {[%clk 0:00:11.9]} 31... Rd8 {[%clk 0:00:43.3]}
32. Rxd8+ {[%clk 0:00:11.2]} 32... Nxd8 {[%clk 0:00:42.7]} 33. Bxc4+ {[%clk
0:00:11.5]} 33... Kf8 {[%clk 0:00:43.5]} 34. Kf2 {[%clk 0:00:11.5]} 34... Ke7
{[%clk 0:00:43.5]} 35. Ke3 {[%clk 0:00:11.7]} 35... Kd6 {[%clk 0:00:43.5]} 36.
Kd4 {[%clk 0:00:11.9]} 36... Ne6+ {[%clk 0:00:43.3]} 37. Bxe6 {[%clk 0:00:11.5]}
37... Kxe6 {[%clk 0:00:43.7]} 38. Kc5 {[%clk 0:00:11]} 38... g5 {[%clk 0:00:42]}
39. fxg5 {[%clk 0:00:10.4]} 39... fxg5 {[%clk 0:00:41.4]} 40. hxg5 {[%clk
0:00:08.6]} 40... h5 {[%clk 0:00:41.6]} 41. Kd4 {[%clk 0:00:06.4]} 41... h4
{[%clk 0:00:42.5]} 42. Ke3 {[%clk 0:00:06.3]} 42... Ke5 {[%clk 0:00:42.7]} 43.
f4+ {[%clk 0:00:06.1]} 43... Ke6 {[%clk 0:00:42.4]} 44. Kf3 {[%clk 0:00:06.4]}
44... b5 {[%clk 0:00:39.1]} 45. axb6 {[%clk 0:00:05.5]} 45... Kd6 {[%clk
0:00:40]} 46. g6 {[%clk 0:00:04.8]} 1-0